lending/lending_fUSD_20250130
["ID","MTS","AMOUNT","RATE_DAILY","PERIOD"]
[350954395,1738239301711,-150.0,0.0001948,2]
[350954396,1738239301733,-150.0,0.0001948,2]
[350954397,1738239301753,-150.17,0.0001962,2]
[350954398,1738239301773,-5000.0,0.000203,2]
[350954399,1738239301794,-643.0,0.000204,2]
[350954400,1738239301817,-149.83,0.000204,2]
[350954402,1738239690815,59522.09632206,0.00023,120]
[350955182,1738240080877,37927.29106202,0.0001,2]
[350955183,1738240103338,772.55626336,0.00023,120]
[350955184,1738240110852,150.0,0.00022732,120]
[350955190,1738240124790,411.6820384,0.00022,120]
[350955191,1738240124824,420.61819135,0.00022,120]
[350955192,1738240124878,195.78,0.0002,120]
[350955194,1738240164403,772.55626336,0.00023,120]
[350955204,1738240203104,849.90689062,0.00023,120]
[350955205,1738240203462,208.12268172,0.00023,120]
[350955206,1738240230736,150.0,0.0002208,120]
[350955215,1738240231724,-651.74,0.00017531,2]
[350955216,1738240231735,-150.0,0.00017766,2]
[350955217,1738240231747,-384.74681213,0.00018,2]
[350955218,1738240231760,-142.35318787,0.00018,2]
[350955219,1738240231770,-150.0,0.00018356,2]
[350955220,1738240231780,-1772.156,0.00018999,2]
[350955221,1738240231791,-4417.49081213,0.00019,2]
[350955222,1738240231850,-313.7199995,0.00019,2]
[350955223,1738240231891,-3369.05797429,0.00019,2]
[350955224,1738240231905,-266.59199939,0.00019,2]
[350955225,1738240231947,-673.13483078,0.00019,2]
[350955226,1738240232004,-31284.23433168,0.00019,2]
[350955255,1738240237713,-470.25,0.00019,2]
[350955256,1738240237769,-658.47843359,0.00019,2]
[350955257,1738240237783,-8547.04161864,0.00019,2]
[350955258,1738240237793,-372.43,0.00019086,2]
[350955259,1738240237802,-199.39,0.00019158,2]
[350955260,1738240237812,-500.0,0.00019164,2]
[350955261,1738240237821,-150.17,0.00019178,2]
[350955262,1738240237831,-150.0,0.00019284,2]
[350955263,1738240237841,-150.0,0.00019284,2]
[350955264,1738240237851,-323.67,0.00019342,2]
[350955265,1738240237861,-184.0,0.00019479,2]
[350955266,1738240237871,-1415.02635735,0.0001948,2]
[350955267,1738240237880,-172.69,0.00019589,2]
[350955269,1738240237890,-1000.0,0.00019601,2]
[350955271,1738240237900,-1302.7733,0.000197,2]
[350955273,1738240237909,-5000.0,0.000197,2]
[350955275,1738240237919,-651.74,0.00019795,2]
[350955277,1738240237928,-33685.26203667,0.000198,2]
[350955280,1738240237948,-640160.55931333,0.000198,2]
[350955282,1738240237957,-199.39,0.00019867,2]
[350955284,1738240237966,-600.0,0.000199,7]
[350955287,1738240237977,-2008.25726291,0.000199,2]
[350955288,1738240237987,-174.25,0.00019902,2]
[350955291,1738240237996,-2008.25726283,0.00019969,2]
[350955293,1738240238006,-2855.2557852,0.00019987,4]
[350955295,1738240238015,-5367.94569786,0.0002,2]
[350955296,1738240238024,-40000.0,0.0002,2]
[350955298,1738240238033,-438.16,0.0002,2]
[350955299,1738240238044,-150.0,0.0002,2]
[350955301,1738240238053,-4318.44378973,0.0002,4]
[350955303,1738240238062,-150.27,0.0002,2]
[350955305,1738240238071,-298.24,0.0002,2]
[350955307,1738240238081,-261.0,0.0002,2]
[350955310,1738240238091,-438.27,0.0002,2]
[350955312,1738240238100,-150.0,0.0002,2]
[350955315,1738240238109,-150.0,0.0002,2]
[350955317,1738240238119,-438.27,0.0002,2]
[350955320,1738240238128,-150.0,0.0002,2]
[350955322,1738240238138,-438.27,0.0002,2]
[350955325,1738240238147,-150.0,0.0002,2]
[350955327,1738240238156,-150.0,0.0002,2]
[350955329,1738240238165,-150.0,0.0002,2]
[350955331,1738240238175,-438.27,0.0002,2]
[350955333,1738240238184,-150.0,0.0002,2]
[350955335,1738240238194,-150.0,0.0002,2]
[350955336,1738240238203,-438.27,0.0002,2]
[350955337,1738240238212,-150.0,0.0002,2]
[350955338,1738240238221,-745.1,0.0002,2]
[350955339,1738240238231,-150.0,0.0002,2]
[350955340,1738240238240,-150.0,0.0002,2]
[350955341,1738240238249,-150.0,0.0002,2]
[350955342,1738240238258,-150.0,0.0002,2]
[350955343,1738240238268,-150.0,0.0002,2]
[350955344,1738240238277,-150.0,0.0002,2]
[350955345,1738240238286,-150.0,0.0002,2]
[350955346,1738240238295,-2008.25726283,0.00020038,2]
[350955347,1738240238305,-2008.25726283,0.00020107,2]
[350955348,1738240238314,-150.17,0.00020137,2]
[350955349,1738240238323,-2008.25726283,0.00020176,2]
[350955350,1738240238333,-2008.25726283,0.00020245,2]
[350955351,1738240238349,-2008.25726283,0.00020314,2]
[350955352,1738240238358,-150.0,0.00020364,2]
[350955353,1738240238368,-2008.25726283,0.00020383,2]
[350955354,1738240238377,-177.93552367,0.00020388,2]
[350955355,1738240238386,-1300.0,0.000204,7]
[350955356,1738240238396,-2008.25726283,0.00020452,2]
[350955357,1738240238406,-1699.0,0.00020488,2]
[350955358,1738240238415,-1699.0,0.00020488,2]
[350955359,1738240238424,-1699.0,0.00020488,2]
[350955360,1738240238433,-1699.0,0.00020488,2]
[350955361,1738240238442,-1699.0,0.00020488,2]
[350955362,1738240238452,-1699.0,0.00020488,2]
[350955363,1738240238462,-1699.0,0.00020488,2]
[350955364,1738240238471,-1699.0,0.00020488,2]
[350955365,1738240238480,-1699.0,0.00020488,2]
[350955366,1738240238490,-1699.0,0.00020488,2]
[350955367,1738240238500,-1699.0,0.00020488,2]
[350955368,1738240238509,-1699.0,0.00020488,2]
[350955369,1738240238519,-1699.0,0.00020488,2]
[350955370,1738240238528,-1699.0,0.00020488,2]
[350955371,1738240238537,-1699.0,0.00020488,2]
[350955372,1738240238546,-1699.0,0.00020488,2]
[350955373,1738240238555,-1699.0,0.00020488,2]
[350955374,1738240238565,-1117.0,0.00020488,2]
[350955375,1738240238574,-3000.0,0.000205,2]
[350955376,1738240238583,-2000.0,0.000205,7]
[350955377,1738240238593,-746.0,0.000205,2]
[350955378,1738240238602,-2008.25726283,0.00020521,2]
[350955379,1738240238611,-500.0,0.00020534,2]
[350955380,1738240238621,-199.39,0.00020576,2]
[350955381,1738240238630,-2008.25726283,0.0002059,2]
[350955382,1738240238640,-494.6576,0.000206,2]
[350955383,1738240238649,-164.69637479,0.000206,2]
[350955384,1738240238658,-2700.0,0.000206,7]
[350955385,1738240238670,-5928.87274055,0.000206,2]
[350955386,1738240238681,-55555.0,0.000206,2]
[350955387,1738240238691,-1000.0,0.00020608,2]
[350955388,1738240238700,-150.0,0.0002062,2]
[350955390,1738240238710,-1690.40987122,0.00020657,2]
[350955391,1738240238720,-2008.25726283,0.00020659,2]
[350955392,1738240238730,-5928.87274046,0.00020674,2]
[350955393,1738240238739,-150.0,0.00020685,4]
[350955394,1738240238749,-150.0,0.00020685,4]
[350955395,1738240238758,-150.0,0.00020685,4]
[350955396,1738240238769,-150.0,0.00020685,4]
[350955397,1738240238778,-251.92075761,0.0002069,2]
[350955398,1738240238787,-251.92075761,0.0002069,2]
[350955399,1738240238796,-4047.8258421,0.00020692,2]
[350955400,1738240238806,-1439.0665762,0.00020695,2]
[350955401,1738240238815,-1783.8950416,0.00020696,2]
[350955402,1738240238824,-240.9095969,0.00020696,2]
[350955403,1738240238833,-274.55306166,0.00020699,7]
[350955404,1738240238844,-500.0,0.00020699,2]
[350955405,1738240238853,-999.0,0.00020699,2]
[350955406,1738240238863,-305.13750033,0.00020699,2]
[350955407,1738240238872,-666.0,0.00020699,2]
[350955408,1738240238882,-666.0,0.00020699,2]
[350955409,1738240238891,-666.0,0.00020699,2]
[350955410,1738240238900,-511.0,0.00020699,2]
[350955411,1738240238909,-185.15407207,0.000207,2]
[350955412,1738240238918,-264.4115715,0.000207,2]
[350955413,1738240238927,-271557.97374415,0.000207,2]
[350955414,1738240238935,-2432631.39324069,0.000207,30]
[350955419,1738240239670,-1013.16,0.000207,30]
[350955420,1738240239684,-4598.48520707,0.000207,30]
[350955421,1738240239735,-9629.54759372,0.000207,30]
[350955422,1738240239746,-598.23629806,0.000207,30]
[350955423,1738240239758,-3583.21264682,0.000207,30]
[350955424,1738240239770,-16888.74288007,0.000207,30]
[350955425,1738240239838,-34684.62980167,0.000207,30]
[350955459,1738240243633,-255.010114,0.000207,30]
[350955460,1738240243745,-3115.65172122,0.000207,30]
[350955461,1738240243803,-3100.4372116,0.000207,30]
[350955470,1738240245893,-3048.588606,0.000207,30]
[350955471,1738240245911,-3775.61668582,0.000207,30]
[350955472,1738240246031,-927.344,0.000207,30]
[350955473,1738240246043,-7560.55959706,0.000207,30]
[350955474,1738240246085,-895.2999994,0.000207,30]
[350955477,1738240290727,150.0,0.00021822,120]
[350955478,1738240350230,271.0,0.00023,120]
[350955479,1738240350784,150.0,0.00021293,120]
[350955480,1738240389953,500.0,0.00023,120]
[350955481,1738240394424,1021.796098,0.00023,120]
[350955482,1738240397004,500.0,0.00023,120]
[350955483,1738240406319,200.0,0.00023,120]
[350955484,1738240410729,150.0,0.00022856,120]
[350955485,1738240471321,150.0,0.00022029,120]
[350955486,1738240479501,500.0,0.00022739,120]
[350955487,1738240479757,362.28683568,0.00022739,120]
[350955488,1738240492677,186.22,0.00010137,2]
[350955490,1738240650743,150.0,0.00020929,120]
[350955491,1738240830726,150.0,0.00021102,120]
[350955492,1738240929773,302.0,0.00023,120]
[350955493,1738240992190,500.0,0.00023,120]
[350955494,1738240997981,500.0,0.00023,120]
[350955495,1738241005663,200.0,0.00023,120]
[350955496,1738241120409,960.702492,0.00023,120]
[350955497,1738241131317,150.0,0.00022641,120]
[350955700,1738241190781,150.0,0.00022224,120]
[350955701,1738241250724,150.0,0.00022235,120]
[350955702,1738241310824,150.0,0.00022503,120]
[350955703,1738241430742,150.0,0.00022351,120]
[350955710,1738241431929,-550.0,0.00013,2]
[350955711,1738241431939,-150.0,0.000143,2]
[350955712,1738241431948,-150.0,0.000143,2]
[350955713,1738241431958,-150.0,0.00014396,2]
[350955714,1738241431969,-600.0,0.00015,2]
[350955715,1738241431980,-73.15,0.00016212,2]
[350955716,1738241432000,-176.85,0.00016212,2]
[350955717,1738241432010,-186.22,0.00016813,2]
[350955718,1738241432019,-650.0,0.00017,2]
[350955719,1738241432030,-3159.0,0.000173,2]
[350955720,1738241432039,-628.46,0.00017396,2]
[350955721,1738241432050,-330.396606,0.00018237,2]
[350955722,1738241432061,-670.0,0.000183,5]
[350955723,1738241432074,-3077.51294701,0.00018329,2]
[350955724,1738241432086,-2236.92088886,0.00018329,2]
[350955725,1738241432098,-998.94172686,0.00018329,2]
[350955726,1738241432110,-2300.0,0.00018329,2]
[350955727,1738241432142,-5930.48652849,0.00018329,2]
[350955728,1738241432166,-12044.87516826,0.00018329,2]
[350955729,1738241432176,-172.69,0.00018422,2]
[350955730,1738241432186,-300.0,0.00018903,2]
[350955731,1738241432195,-1000.0,0.00018904,9]
[350955732,1738241432204,-174.25,0.00018982,2]
[350955733,1738241432214,-700.0,0.00019,2]
[350955734,1738241432224,-500.0,0.00019164,2]
[350955735,1738241432234,-1000.0,0.00019178,9]
[350955736,1738241432243,-150.17,0.00019178,2]
[350955737,1738241432252,-490.0,0.0001921,2]
[350955738,1738241432261,-269.94,0.00019257,2]
[350955739,1738241432271,-199.39,0.00019341,2]
[350955740,1738241432281,-306.77,0.00019512,2]
[350955741,1738241432291,-1000.0,0.00019547,2]
[350955742,1738241432300,-1000.0,0.00019654,2]
[350955743,1738241432309,-628.46,0.0001966,2]
[350955744,1738241432319,-166.83,0.000197,2]
[350955745,1738241432328,-600.0,0.000197,7]
[350955746,1738241432338,-101.47265554,0.000198,7]
[350955747,1738241432369,-1198.52734446,0.000198,7]
[350955748,1738241432379,-58.08085643,0.000199,7]
[350955749,1738241432391,-1941.91914357,0.000199,7]
[350955751,1738241432400,-586.1234,0.000199,2]
[350955753,1738241432409,-2041.59212207,0.000199,2]
[350955755,1738241432418,-172.86373395,0.00019938,2]
[350955757,1738241432427,-2041.59212189,0.00019969,2]
[350955759,1738241432437,-251.92075761,0.0001999,2]
[350955761,1738241432446,-11613.48422749,0.0002,2]
[350955763,1738241432458,-9138.94336861,0.0002,2]
[350955780,1738241437891,-52696.240716,0.0002,2]
[350955781,1738241438115,-3909.96317609,0.0002,2]
[350955782,1738241438127,-15302.29935771,0.0002,2]
[350955783,1738241438141,-15377.86823779,0.0002,2]
[350955784,1738241438173,-1248.97330021,0.0002,2]
[350955790,1738241439900,-1204.51437272,0.0002,2]
[350955791,1738241439912,-507.48070421,0.0002,2]
[350955792,1738241440126,-4463.15286867,0.0002,2]
[350955793,1738241440184,-82585.80460085,0.0002,2]
[350955794,1738241440196,-489.9559545,0.0002,2]
[350955797,1738241442571,157.34,0.00010137,2]
[350955799,1738241442882,-157.34,0.00019198,2]
[350955800,1738241442892,-659.8586,0.0002,2]
[350955801,1738241442941,-110408.21854769,0.0002,2]
[350955808,1738241443000,-3433.82,0.0002,2]
[350955809,1738241443013,-7441.4,0.0002,2]
[350955810,1738241443028,-40225.7949391,0.0002,2]
[350955811,1738241443067,-1019.3039887,0.0002,2]
[350955812,1738241443079,-13315.39999914,0.0002,2]
[350955813,1738241443091,-14073.7776466,0.0002,2]
[350955814,1738241443105,-4755.3000186,0.0002,2]
[350955815,1738241443121,-1712.17000001,0.0002,2]
[350955817,1738241443277,-5568.91770544,0.0002,2]
[350955856,1738241445961,-870.12101283,0.00019938,2]
[350955857,1738241445973,-20724.33298717,0.0002,2]
[350955858,1738241446078,-15518.884945,0.0002,2]
[350955860,1738241446340,-18205.12188483,0.0002,2]
[350955861,1738241446352,-801.3848,0.0002,2]
[350955862,1738241446368,-103059.99857127,0.0002,2]
[350955863,1738241490751,150.0,0.00021245,120]
[350955864,1738241550762,150.0,0.00021635,120]
[350955865,1738241590635,500.0,0.00022773,120]
[350955866,1738241596823,446.120158,0.00022773,120]
[350955867,1738241604594,200.0,0.00022773,120]
[350955868,1738241730787,150.0,0.0002223,120]
[350955869,1738241850749,150.0,0.00022195,120]
[350955870,1738241866176,-30000.0,0.00021,60]
[350955871,1738241910837,150.0,0.00020634,120]
[350955872,1738241914650,-50000.0,0.00021,60]
[350955873,1738242030763,150.0,0.0002137,120]
[350955874,1738242039425,1000.0,0.00023,120]
[350955875,1738242090753,150.0,0.00022348,120]
[350955876,1738242102370,750.0,0.00023,120]
[350955877,1738242121444,1000.0,0.00023,120]
[350955878,1738242150790,150.0,0.00022349,120]
[350955879,1738242169139,500.0,0.00023,120]
[350955880,1738242192170,500.0,0.00023,120]
[350955881,1738242203211,200.0,0.00023,120]
[350955882,1738242261746,155.85,0.000111,2]
[350955884,1738242390772,150.0,0.00022761,120]
[350955885,1738242451272,150.0,0.00021823,120]
[350955886,1738242510723,150.0,0.00022177,120]
[350955887,1738242512312,518.36633759,0.00023,120]
[350955904,1738242553139,1000.0,0.00023,120]
[350955906,1738242567065,1000.0,0.00023,120]
[350955907,1738242570733,150.0,0.0002216,120]
[350955908,1738242581006,1000.0,0.00023,120]
[350955909,1738242598312,1055.0,0.00023,120]
[350955911,1738242632166,-548.97558577,0.00013,2]
[350955912,1738242632180,-1.02441423,0.00013,2]
[350955913,1738242632190,-150.0,0.00014,2]
[350955914,1738242632200,-150.0,0.000143,2]
[350955915,1738242632209,-600.0,0.00015,2]
[350955916,1738242632219,-150.0,0.00015304,2]
[350955917,1738242632228,-181.6241432,0.00015999,2]
[350955918,1738242632253,-118.3758568,0.00015999,2]
[350955919,1738242632263,-815.03569172,0.00016,6]
[350955920,1738242632274,-115.23521148,0.00016,2]
[350955921,1738242632291,-2413.04278522,0.00016,2]
[350956023,1738242638133,-7111.7220033,0.00016,2]
[350956024,1738242638143,-605.05,0.00017044,2]
[350956025,1738242638153,-323.69384516,0.000173,2]
[350956026,1738242638175,-2823.30615484,0.000173,2]
[350956027,1738242638185,-420.0,0.00017492,2]
[350956028,1738242638195,-800.0,0.00018,8]
[350956029,1738242638205,-245.41,0.00018312,2]
[350956030,1738242638215,-199.39,0.00018411,2]
[350956031,1738242638225,-172.69,0.00018655,2]
[350956032,1738242638235,-1000.0,0.00018663,2]
[350956033,1738242638245,-166.83,0.0001883,2]
[350956034,1738242638255,-269.94,0.0001883,2]
[350956035,1738242638268,-1730.61,0.0001896,2]
[350956036,1738242638278,-300.0,0.00019125,2]
[350956037,1738242638287,-500.0,0.00019164,2]
[350956038,1738242638302,-150.17,0.00019178,2]
[350956039,1738242638312,-150.0,0.00019291,2]
[350956040,1738242638322,-605.05,0.00019308,2]
[350956041,1738242638331,-150.0,0.00019367,2]
[350956042,1738242638342,-291.92,0.00019367,2]
[350956043,1738242638352,-150.0,0.0001941,2]
[350956044,1738242638362,-150.0,0.0001941,2]
[350956045,1738242638371,-150.0,0.0001941,2]
[350956046,1738242638382,-176.58,0.00019424,2]
[350956047,1738242638391,-400.0,0.000196,7]
[350956048,1738242638402,-150.0,0.00019668,2]
[350956049,1738242638412,-262.5,0.0001969,2]
[350956050,1738242638423,-900.0,0.000197,7]
[350956051,1738242638434,-199.39,0.00019773,2]
[350956052,1738242638445,-494.6576,0.00019799,2]
[350956053,1738242638455,-185.828514,0.00019799,2]
[350956055,1738242638466,-783.10891161,0.00019799,2]
[350956057,1738242638476,-12801.597,0.000198,2]
[350956058,1738242638485,-1777.057,0.000198,2]
[350956059,1738242638495,-199.73409754,0.000198,2]
[350956060,1738242638513,-3472.46049248,0.000198,2]
[350956061,1738242638534,-750.17897989,0.000198,2]
[350956062,1738242638546,-501.54078235,0.000198,2]
[350956063,1738242638562,-76.08564774,0.000198,2]
[350956064,1738242638773,-187.87298725,0.000198,2]
[350956065,1738242638805,-169.87264666,0.000198,2]
[350956066,1738242638815,-1400.0,0.000198,7]
[350956067,1738242638825,-2500.0,0.00019873,3]
[350956068,1738242638835,-2500.0,0.00019873,3]
[350956069,1738242638845,-292.04728257,0.0001989,2]
[350956070,1738242638854,-2044.554,0.00019898,2]
[350956071,1738242638864,-274.55306166,0.00019898,7]
[350956072,1738242638873,-323.05293929,0.00019898,2]
[350956073,1738242638883,-12888.8624667,0.00019899,2]
[350956074,1738242638896,-610.98230431,0.00019899,2]
[350956075,1738242638907,-4391.66164791,0.00019899,2]
[350956076,1738242640121,-867.51146052,0.00019899,2]
[350956077,1738242640287,-649.84901329,0.00019899,2]
[350956078,1738242640300,-544.34473846,0.00019899,2]
[350956079,1738242640312,-54479.31610237,0.00019899,2]
[350956080,1738242640327,-2480.74477818,0.00019899,2]
[350956081,1738242640343,-13253.22423378,0.00019899,2]
[350956082,1738242640356,-511.64213816,0.00019899,2]
[350956083,1738242640370,-2189.22851675,0.00019899,2]
[350956084,1738242640380,-185.15407207,0.00019899,2]
[350956085,1738242640389,-698.75555972,0.00019899,7]
[350956086,1738242640401,-753.69950238,0.00019899,7]
[350956087,1738242640413,-4080.83303246,0.00019899,7]
[350956088,1738242640430,-941.68,0.00019899,7]
[350956089,1738242640443,-544.05459812,0.00019899,7]
[350956090,1738242640461,-10502.0,0.00019899,7]
[350956112,1738242640849,150.0,0.00012,2]
[350956128,1738242643565,-451.405865,0.00019899,7]
[350956155,1738242646713,-31626.0,0.00019899,7]
[350956156,1738242646734,-1596.3813,0.00019899,7]
[350956157,1738242646745,-16114.5,0.00019899,7]
[350956158,1738242792160,500.0,0.00023,120]
[350956159,1738242803605,200.0,0.00023,120]
[350956160,1738242810785,150.0,0.00022082,120]
[350956161,1738242870767,150.0,0.00022627,120]
[350956162,1738242988640,1000.0,0.00023,120]
[350956163,1738242990815,150.0,0.00022109,120]
[350956164,1738243050876,150.0,0.0002152,120]
[350956165,1738243171170,150.0,0.00021136,120]
[350956166,1738243230789,150.0,0.00021686,120]
[350956167,1738243290779,150.0,0.00022022,120]
[350956168,1738243334713,167.59,0.00010137,2]
[350956170,1738243350784,150.0,0.00021283,120]
[350956171,1738243390171,623.786456,0.00023,120]
[350956172,1738243401419,200.0,0.00023,120]
[350956173,1738243411229,150.0,0.00021206,120]
[350956175,1738243526848,998.99619476,0.00023,120]
[350956176,1738243531349,150.0,0.00021189,120]
[350956182,1738243544040,284.94257253,0.00022,120]
[350956186,1738243630661,1007.20212155,0.00022,120]
[350956187,1738243650744,150.0,0.00021267,120]
[350956188,1738243669468,333.53874194,0.0002,120]
[350956189,1738243710819,150.0,0.00021964,120]
[350956190,1738243721507,202.0,0.0002,120]
[350956194,1738243724321,800.0,0.00021,120]
[350956196,1738243724664,411.6820384,0.00022,120]
[350956197,1738243724861,195.78,0.0002,120]
[350956198,1738243724901,420.61819135,0.00022,120]
[350956199,1738243730155,1000.0,0.00023,120]
[350956200,1738243733976,1000.0,0.00023,120]
[350956201,1738243738185,1000.0,0.00023,120]
[350956202,1738243745056,1000.0,0.00023,120]
[350956248,1738243757088,1000.0,0.00023,120]
[350956355,1738243770759,150.0,0.00022009,120]
[350956358,1738243830732,150.0,0.00022422,120]
[350956366,1738243832421,-210.0,0.0001592,2]
[350956367,1738243832431,-150.0,0.00015968,2]
[350956368,1738243832442,-150.0,0.00016242,2]
[350956369,1738243832452,-210.0,0.000163,2]
[350956370,1738243832462,-210.0,0.0001667,2]
[350956371,1738243832479,-581.75,0.00016745,2]
[350956372,1738243832489,-167.59,0.00016813,2]
[350956373,1738243832499,-210.0,0.0001704,2]
[350956374,1738243832509,-210.0,0.0001741,2]
[350956375,1738243832520,-1393.57238447,0.00017479,2]
[350956376,1738243832541,-2356.96302698,0.00017479,2]
[350956377,1738243832763,-328.66356891,0.00017479,2]
[350956378,1738243832827,-541.75,0.00017479,2]
[350956379,1738243832896,-428.902964,0.00017479,2]
[350956388,1738243838226,-342.31127451,0.00017479,2]
[350956389,1738243838284,-2025.44595638,0.00017479,2]
[350956390,1738243838346,-1107.28082475,0.00017479,2]
[350956391,1738243838357,-150.0,0.00017512,2]
[350956392,1738243838373,-150.0,0.00017512,2]
[350956393,1738243838384,-210.0,0.0001779,2]
[350956394,1738243838394,-340.4,0.00017933,2]
[350956395,1738243838404,-1500.0,0.00017961,2]
[350956396,1738243838414,-15858.28604508,0.00018,2]
[350956397,1738243838424,-500.0,0.00018066,2]
[350956398,1738243838434,-439.88,0.00018082,2]
[350956399,1738243838443,-1000.0,0.00018149,2]
[350956400,1738243838454,-210.0,0.0001816,2]
[350956401,1738243838464,-181.03,0.0001823,2]
[350956402,1738243838477,-165.29,0.00018291,2]
[350956403,1738243838488,-165.29,0.00018383,2]
[350956404,1738243838498,-513.42,0.00018424,2]
[350956405,1738243838508,-209.28,0.00018485,2]
[350956406,1738243838518,-1757.0,0.000185,5]
[350956407,1738243838529,-210.0,0.0001853,2]
[350956408,1738243838544,-171.03,0.00018551,2]
[350956409,1738243838554,-150.0,0.000186,2]
[350956410,1738243838565,-439.88,0.00018751,2]
[350956411,1738243838575,-300.0,0.000188,6]
[350956412,1738243838585,-210.0,0.000189,2]
[350956413,1738243838594,-1988.82312835,0.000189,2]
[350956414,1738243838604,-700.0,0.000189,6]
[350956415,1738243838615,-185.82851399,0.000189,2]
[350956416,1738243838624,-752.06217297,0.000189,2]
[350956417,1738243838634,-1000.0,0.00018904,9]
[350956418,1738243838645,-500.0,0.00018973,2]
[350956419,1738243838655,-360.16500281,0.0001899,2]
[350956420,1738243838666,-1020.25567286,0.00018999,5]
[350956421,1738243838677,-760475.68495621,0.00018999,2]
[350956422,1738243838688,-43477.89624753,0.00019,2]
[350956423,1738243838698,-7591.85274526,0.00019,2]
[350956424,1738243838708,-515006.69802082,0.00019,2]
[350956425,1738243838718,-2226.74230476,0.00019,2]
[350956426,1738243838732,-1988.82312808,0.00019003,2]
[350956427,1738243838742,-1804.875,0.00019009,2]
[350956428,1738243838751,-581.75,0.00019009,2]
[350956429,1738243838762,-176.40963862,0.00019009,2]
[350956430,1738243838772,-340.42856214,0.0001901,7]
[350956431,1738243838782,-1000.0,0.0001902,2]
[350956432,1738243838792,-752.06217294,0.00019022,2]
[350956435,1738243838802,-1988.82312808,0.00019107,2]
[350956436,1738243838811,-5069.01549963,0.0001911,2]
[350956437,1738243838822,-752.06217294,0.00019144,2]
[350956438,1738243838832,-11901.99,0.00019151,2]
[350956439,1738243838842,-500.0,0.00019164,2]
[350956440,1738243838853,-500.0,0.00019164,2]
[350956441,1738243838862,-200.0,0.00019168,2]
[350956442,1738243838877,-99395.92713042,0.0001917,2]
[350956443,1738243838891,-4000.0,0.00019178,2]
[350956444,1738243838901,-150.18,0.00019178,2]
[350956445,1738243838911,-298.24,0.00019178,2]
[350956446,1738243838922,-150.27,0.00019178,2]
[350956447,1738243838932,-261.0,0.00019178,2]
[350956448,1738243838942,-438.27,0.00019178,2]
[350956449,1738243838952,-150.0,0.00019178,2]
[350956450,1738243838964,-438.27,0.00019178,2]
[350956451,1738243838978,-150.0,0.00019178,2]
[350956452,1738243838988,-150.0,0.00019178,2]
[350956453,1738243838999,-1988.82312808,0.0001921,2]
[350956454,1738243839009,-752.06217294,0.00019267,2]
[350956455,1738243839019,-210.0,0.0001928,2]
[350956456,1738243839028,-500.0,0.000193,7]
[350956457,1738243839038,-121645.29580997,0.000193,2]
[350956458,1738243839048,-1988.82312808,0.00019314,2]
[350956459,1738243839058,-752.06217294,0.00019389,2]
[350956460,1738243839068,-1000.0,0.000194,7]
[350956461,1738243839078,-1100.0,0.000194,7]
[350956462,1738243839088,-1988.82312808,0.00019417,2]
[350956463,1738243839098,-439.88,0.0001942,2]